bitfinex-derivatives/quotes_BTCF0:USTF0_20241103
["timestamp","ask_amount","ask_price","bid_price","bid_amount"]
[1730642602177,0.075466,68082.0,68081.0,0.07510481]
[1730642602367,0.002,68082.0,68081.0,0.07510481]
[1730642602565,0.075466,68082.0,68081.0,0.13640481]
[1730642605893,0.075466,68082.0,68081.0,0.0633]
[1730642606176,0.075466,68082.0,68081.0,0.0323]
[1730642606378,0.075466,68082.0,68081.0,0.002]
[1730642608078,0.627706,68082.0,68081.0,1e-06]
[1730642608474,0.075466,68082.0,68081.0,1e-06]
[1730642608789,0.187066,68082.0,68081.0,1e-06]
[1730642609192,0.22092785,68082.0,68081.0,1e-06]
[1730642609480,0.22192785,68082.0,68081.0,1e-06]
[1730642609779,0.073476,68073.0,68072.0,0.07310381]
[1730642610580,0.075466,68082.0,68075.0,0.073473]
[1730642610581,0.002,68082.0,68075.0,0.073473]
[1730642610779,0.002,68082.0,68076.0,0.3608]
[1730642611081,0.001,68082.0,68076.0,0.3608]
[1730642611280,0.3608,68086.0,68076.0,0.3608]
[1730642611582,0.001,68082.0,68076.0,0.3608]
[1730642611783,0.073471,68078.0,68077.0,0.07347]
[1730642612982,0.001,68082.0,68076.0,0.3608]
[1730642612983,0.073471,68077.0,68076.0,0.3608]
[1730642613885,0.073475,68074.0,68073.0,0.073475]
[1730642614182,0.073476,68073.0,68072.0,0.07310381]
[1730642614487,0.073476,68073.0,68072.0,0.14658081]
[1730642615286,0.073476,68073.0,68072.0,0.15686081]
[1730642615486,0.073476,68073.0,68072.0,0.08338381]
[1730642616180,0.073476,68073.0,68072.0,0.01028]
[1730642616578,0.073476,68073.0,68070.0,0.39476]
[1730642616579,0.073478,68071.0,68070.0,0.39476]
[1730642616777,0.073478,68071.0,68070.0,0.394]
[1730642617192,0.073478,68071.0,68070.0,0.40428]
[1730642618994,0.074478,68071.0,68070.0,0.477759]
[1730642619905,0.002,68071.0,68070.0,0.477759]
[1730642620081,0.07347,68079.0,68078.0,0.073469]
[1730642621093,0.073471,68077.0,68076.0,0.3608]
[1730642622786,0.074471,68077.0,68076.0,0.3618]
[1730642623093,0.075471,68077.0,68076.0,0.61327851]
[1730642623281,0.075471,68077.0,68076.0,0.54019773]
[1730642623683,0.075471,68077.0,68076.0,0.61350451]
[1730642623894,0.075471,68077.0,68076.0,0.54019773]
[1730642624093,0.001,68077.0,68076.0,0.98187773]
[1730642624301,0.434257,68091.0,68088.0,0.073459]
[1730642624481,0.434257,68091.0,68089.0,0.0639]
[1730642624482,0.3608,68091.0,68089.0,0.0639]
[1730642624786,0.3608,68091.0,68090.0,0.16518548]
[1730642624994,0.434256,68091.0,68090.0,0.16505668]
[1730642625192,0.3608,68091.0,68090.0,0.09182122]
[1730642625395,0.3608,68102.0,68090.0,0.16518299]
[1730642625584,0.073456,68091.0,68090.0,0.0733313]
[1730642625786,0.074456,68091.0,68090.0,0.16514676]
[1730642626086,0.074456,68091.0,68090.0,0.16511956]
[1730642626291,0.074456,68091.0,68090.0,0.16512791]
[1730642626679,0.073456,68091.0,68090.0,0.09281738]
[1730642626880,0.073456,68091.0,68090.0,0.16612862]
[1730642627090,0.073456,68091.0,68090.0,0.001]
[1730642627590,0.073456,68091.0,68090.0,0.16592964]
[1730642627889,0.074456,68091.0,68090.0,0.015]
[1730642628288,0.074456,68091.0,68090.0,0.017]
[1730642628289,0.075456,68091.0,68090.0,0.017]
[1730642628492,0.075456,68091.0,68090.0,0.45111124]
[1730642628687,0.075456,68091.0,68090.0,0.017]
[1730642637705,0.075456,68091.0,68090.0,0.090457]
[1730642638099,0.002,68091.0,68090.0,0.090457]
[1730642638309,0.002,68091.0,68090.0,0.531057]
[1730642638693,0.03457353,68109.0,68090.0,0.531057]
[1730642638889,0.0305,68113.0,68098.0,0.073448]
[1730642638890,0.073448,68099.0,68098.0,0.073448]
[1730642640502,0.074448,68099.0,68098.0,0.086448]
[1730642641102,0.001,68099.0,68098.0,0.526968]
[1730642642094,0.002,68099.0,68098.0,0.529968]
[1730642643203,0.075448,68099.0,68098.0,0.529968]
[1730642643390,0.075448,68099.0,68098.0,0.016]
[1730642643595,0.075448,68099.0,68098.0,0.089449]
[1730642644207,0.002,68099.0,68098.0,0.089449]
[1730642644395,0.002,68099.0,68098.0,0.74994698]
[1730642644595,0.00220338,68105.0,68104.0,0.073442]
[1730642644801,0.00220338,68105.0,68104.0,0.434242]
[1730642645400,0.00220338,68105.0,68104.0,0.65476404]
[1730642645890,0.00320338,68105.0,68104.0,0.65776404]
[1730642646397,0.00420338,68105.0,68104.0,1.11224404]
[1730642646809,0.00320338,68105.0,68104.0,1.09824404]
[1730642647109,0.00420338,68105.0,68104.0,1.11224404]
[1730642647601,0.00420338,68105.0,68104.0,0.462242]
[1730642647602,0.002,68105.0,68104.0,0.462242]
[1730642648799,0.002,68105.0,68104.0,0.902722]
[1730642649296,0.075441,68105.0,68104.0,0.462242]
[1730642649933,0.002,68105.0,68104.0,0.902722]
[1730642650215,0.002,68105.0,68104.0,1.1228999]
[1730642651019,0.07562955,68119.0,68113.0,0.07343]
[1730642651020,0.073432,68114.0,68113.0,0.07343]
[1730642651219,0.073432,68114.0,68113.0,0.43423]
[1730642651630,0.073427,68118.0,68116.0,0.073428]
[1730642651930,0.073427,68118.0,68113.0,0.3608]
[1730642651931,0.073427,68118.0,68117.0,0.106328]
[1730642652138,0.073431,68114.0,68113.0,0.3608]
[1730642652321,0.073431,68114.0,68113.0,0.3748]
[1730642653029,0.073431,68114.0,68113.0,0.014]
[1730642653226,0.073431,68114.0,68113.0,0.028]
[1730642654328,0.073431,68114.0,68113.0,0.014]
[1730642655326,0.073431,68114.0,68113.0,0.028]
[1730642656244,0.434231,68114.0,68113.0,0.028]
[1730642658637,0.434231,68114.0,68113.0,0.101433]
[1730642660241,0.073431,68114.0,68113.0,0.101433]
[1730642661247,0.073431,68114.0,68113.0,0.028]
[1730642665643,0.434231,68114.0,68113.0,0.028]
[1730642665945,0.874671,68114.0,68113.0,0.028]
[1730642666130,0.874671,68114.0,68107.0,0.01027]
[1730642666131,0.073438,68108.0,68107.0,0.01027]
[1730642666337,0.073438,68108.0,68091.0,0.11910968]
[1730642666338,0.073447,68100.0,68099.0,0.06082302]
[1730642666548,0.073447,68100.0,68099.0,0.00220223]
[1730642666760,0.073444,68102.0,68089.0,0.1222521]
[1730642666761,0.073444,68102.0,68097.0,0.41942079]
[1730642667049,0.073444,68102.0,68094.0,0.07331124]
[1730642667050,0.073449,68098.0,68094.0,0.05861771]
[1730642667237,0.073449,68098.0,68093.0,0.05861771]
[1730642667238,0.073453,68094.0,68093.0,0.05861771]
[1730642667442,0.073455,68092.0,68091.0,0.05861771]
[1730642667646,0.073457,68090.0,68089.0,0.05861771]
[1730642667950,0.063177,68090.0,68089.0,0.05861771]
[1730642668135,0.063177,68090.0,68083.0,0.43410776]
[1730642668136,0.3608,68094.0,68088.0,0.05861771]
[1730642668338,0.073464,68084.0,68083.0,0.36164]
[1730642668547,0.073464,68084.0,68083.0,0.3608]
[1730642668844,0.063184,68084.0,68083.0,0.3608]
[1730642670842,0.064184,68084.0,68083.0,0.3608]
[1730642671530,0.065184,68084.0,68083.0,0.3748]
[1730642678055,0.065184,68084.0,68083.0,0.014]
[1730642678367,0.065184,68084.0,68074.0,0.0316]
[1730642678368,0.073478,68071.0,68070.0,0.05860996]
[1730642678655,0.434278,68071.0,68070.0,0.05860996]
[1730642678859,0.073491,68059.0,68058.0,0.07312385]
[1730642679452,0.073493,68057.0,68056.0,0.39266]
[1730642679659,0.073493,68057.0,68056.0,0.3919]
[1730642680350,0.073493,68057.0,68050.0,0.05860996]
[1730642680656,0.073493,68057.0,68048.0,0.05860996]
[1730642680657,0.073502,68049.0,68048.0,0.05860996]
[1730642680948,0.073493,68057.0,68044.0,0.0331]
[1730642680949,0.073506,68045.0,68044.0,0.0331]
[1730642683253,0.074506,68045.0,68044.0,0.0371]
[1730642684052,0.075506,68045.0,68044.0,0.0381]
[1730642686442,0.075506,68045.0,68044.0,0.552487]
[1730642686443,0.002,68045.0,68044.0,0.552487]
[1730642686647,0.073498,68053.0,68044.0,0.69931262]
[1730642686947,0.073502,68049.0,68048.0,0.3608]
[1730642688844,0.074502,68049.0,68048.0,0.3618]
[1730642689461,0.001,68049.0,68048.0,0.435303]
[1730642690046,0.001,68049.0,68048.0,0.3618]
[1730642690240,0.001,68049.0,68048.0,0.435303]
[1730642690739,0.001,68053.0,68052.0,0.073498]
[1730642690941,0.073487,68063.0,68049.0,0.80164]
[1730642691135,0.073486,68064.0,68059.0,0.07349]
[1730642691345,0.073487,68063.0,68060.0,0.136489]
[1730642691528,0.10968455,68073.0,68060.0,0.136489]
[1730642691935,0.10968455,68073.0,68060.0,0.063]
[1730642691936,0.00220455,68073.0,68060.0,0.063]
[1730642692229,0.073485,68064.0,68063.0,0.3608]
[1730642693141,0.001,68068.0,68060.0,0.065]
[1730642693440,0.073489,68061.0,68060.0,0.065]
[1730642693632,0.073489,68061.0,68060.0,0.10019759]
[1730642694236,0.073489,68061.0,68060.0,0.10119759]
[1730642694625,0.073489,68061.0,68060.0,0.10819759]
[1730642694830,0.073489,68061.0,68060.0,0.10519759]
[1730642695026,0.074489,68061.0,68060.0,0.10819759]
[1730642695344,0.075489,68061.0,68060.0,0.01]
[1730642697039,0.516289,68061.0,68060.0,0.01]
[1730642697432,0.515289,68061.0,68060.0,0.007]
[1730642697633,0.074489,68061.0,68060.0,0.008]
[1730642697833,0.075489,68061.0,68060.0,0.008]
[1730642702050,0.002,68061.0,68060.0,0.08149]
[1730642702252,0.002,68061.0,68060.0,0.52229]
[1730642703048,0.002,68061.0,68060.0,1.04773542]
[1730642703354,0.002,68061.0,68060.0,0.97465603]
[1730642703659,0.002,68061.0,68060.0,0.90116603]
[1730642703846,0.002,68061.0,68060.0,0.97465603]
[1730642704047,0.002,68061.0,68060.0,1.01044146]
[1730642704859,0.075489,68061.0,68060.0,0.49615146]
[1730642705753,0.075489,68061.0,68060.0,0.40458543]
[1730642706060,0.075489,68061.0,68060.0,0.04378543]
[1730642707075,0.075489,68061.0,68060.0,0.008]
[1730642709177,0.11599388,68061.0,68060.0,0.008]
[1730642709568,0.115942,68061.0,68060.0,0.008]
[1730642709981,0.16250641,68061.0,68060.0,0.008]
[1730642710170,0.27446641,68061.0,68060.0,0.008]
[1730642710680,0.073504,68047.0,68046.0,0.00220405]
[1730642711782,0.073504,68047.0,68046.0,0.00720405]
[1730642711972,0.11441447,68047.0,68046.0,0.00720405]
[1730642712167,0.074504,68047.0,68046.0,0.00720405]
[1730642712872,0.074504,68047.0,68046.0,0.005]
[1730642713666,0.074504,68047.0,68040.0,0.3608]
[1730642713667,0.07351,68041.0,68040.0,0.3608]
[1730642714175,0.07351,68041.0,68040.0,0.45326272]
[1730642714976,0.07451,68041.0,68040.0,0.45326272]
[1730642715568,0.43531,68041.0,68040.0,0.07325516]
[1730642715771,0.3618,68041.0,68038.0,0.07325897]
[1730642715977,0.073513,68038.0,68037.0,0.07325897]
[1730642716181,0.073515,68037.0,68036.0,0.07325897]
[1730642716376,0.073516,68036.0,68035.0,0.07325897]
[1730642716583,0.073516,68036.0,68035.0,0.16592687]
[1730642716885,0.073519,68033.0,68032.0,0.07325897]
[1730642717084,0.073516,68036.0,68030.0,0.07323867]
[1730642717385,0.073516,68036.0,68031.0,0.16593311]
[1730642717676,0.073516,68036.0,68031.0,0.07320379]
[1730642717876,0.434317,68035.0,68034.0,0.05855824]
[1730642718078,0.073518,68034.0,68033.0,0.05855824]
[1730642718278,0.073522,68030.0,68029.0,0.07320379]
[1730642718471,0.073522,68030.0,68029.0,0.45357182]
[1730642718669,0.001,68036.0,68029.0,0.45357182]
[1730642718875,0.001,68036.0,68035.0,0.05852822]
[1730642719176,0.074516,68036.0,68035.0,0.05852822]
[1730642719371,0.074516,68036.0,68026.0,0.03270496]
[1730642719372,0.073517,68035.0,68034.0,0.05852822]
[1730642720077,0.073517,68035.0,68033.0,0.05852822]
[1730642720078,0.001,68035.0,68033.0,0.05852822]
[1730642720284,0.001,68035.0,68034.0,0.05850168]
[1730642720587,0.001,68035.0,68033.0,0.05850168]
[1730642720588,0.073518,68034.0,68033.0,0.05850168]
[1730642720980,0.001,68035.0,68031.0,0.05850168]
[1730642721190,0.07352,68032.0,68031.0,0.05850168]
[1730642722284,0.001,68034.0,68030.0,0.05850168]
[1730642722285,0.073521,68031.0,68030.0,0.05850168]
[1730642722479,0.001,68034.0,68030.0,0.05848802]
[1730642722686,0.074518,68034.0,68033.0,0.04386548]
[1730642722984,0.073519,68033.0,68032.0,0.04386548]
[1730642723189,0.001,68032.0,68031.0,0.04486363]
[1730642723380,0.07452,68032.0,68031.0,0.04486363]
[1730642723577,0.07452,68032.0,68031.0,0.001]
[1730642723777,0.073523,68029.0,68028.0,0.05848802]
[1730642724592,0.073525,68027.0,68026.0,0.00220496]
[1730642726789,0.074525,68027.0,68026.0,0.00320496]
[1730642726979,0.075525,68027.0,68026.0,0.00320496]
[1730642728596,0.075525,68027.0,68026.0,0.24197007]
[1730642728790,0.3608,68041.0,68026.0,0.0952838]
[1730642728979,0.07352,68033.0,68032.0,0.07352]
[1730642729376,0.07352,68033.0,68032.0,0.11738669]
[1730642729893,0.07352,68033.0,68032.0,0.04386669]
[1730642730200,0.3608,68041.0,68031.0,0.04386669]
[1730642730379,0.07352,68032.0,68031.0,0.04386669]
[1730642730580,0.073522,68030.0,68029.0,0.13201156]
[1730642730789,0.073522,68030.0,68029.0,0.073523]
[1730642730987,0.073523,68029.0,68028.0,0.41928856]
[1730642731189,0.073523,68029.0,68028.0,0.41930236]
[1730642731488,0.073524,68028.0,68027.0,0.05850236]
[1730642731683,0.073525,68027.0,68026.0,0.06070732]
[1730642733690,0.075525,68027.0,68026.0,0.00420496]
[1730642734290,0.075525,68027.0,68026.0,0.06270732]
[1730642735089,0.075525,68027.0,68026.0,0.00420496]
[1730642735983,0.075525,68027.0,68026.0,0.09619295]
[1730642736183,0.075525,68027.0,68026.0,0.18388822]
[1730642736484,0.075525,68027.0,68026.0,0.09619295]
[1730642737078,0.075525,68027.0,68026.0,0.18388822]
[1730642738084,0.075525,68027.0,68026.0,0.09619295]
[1730642738486,0.075525,68027.0,68026.0,0.20587834]
[1730642738798,0.002,68027.0,68026.0,0.20587834]
[1730642739002,0.075525,68027.0,68026.0,0.20587834]
[1730642740492,0.002,68027.0,68026.0,0.27940434]
[1730642741483,0.073505,68046.0,68026.0,0.86595966]
[1730642741683,0.073505,68046.0,68045.0,0.07342426]
[1730642741893,0.073505,68046.0,68045.0,0.09198799]
[1730642742285,0.073505,68046.0,68045.0,0.16549399]
[1730642742491,0.073505,68046.0,68045.0,0.09198799]
[1730642742795,0.033,68057.0,68045.0,0.20051655]
[1730642743005,0.001,68046.0,68045.0,0.075506]
[1730642743195,0.001,68046.0,68045.0,0.27505066]
[1730642743392,0.001,68046.0,68045.0,0.71593066]
[1730642743597,0.3608,68061.0,68045.0,0.71593066]
[1730642743598,0.073499,68052.0,68051.0,0.073499]
[1730642743899,0.073499,68052.0,68051.0,0.63359988]
[1730642744088,0.10972,68071.0,68054.0,0.073496]
[1730642744089,0.00320497,68055.0,68054.0,0.073496]
[1730642744590,0.00320497,68055.0,68051.0,0.43413583]
[1730642744788,0.00320497,68055.0,68051.0,0.3608]
[1730642744789,0.073498,68052.0,68051.0,0.3608]
[1730642745191,0.073498,68052.0,68051.0,0.41945112]
[1730642745399,0.00320497,68055.0,68049.0,0.05865126]
[1730642745586,0.0735,68050.0,68049.0,0.05865126]
[1730642745897,0.0735,68050.0,68045.0,0.07333583]
[1730642745898,0.0735,68050.0,68048.0,0.05865126]
[1730642746100,0.0735,68050.0,68047.0,0.05865126]
[1730642746299,0.073503,68048.0,68047.0,0.05865126]
[1730642746897,0.073508,68043.0,68042.0,0.10633583]
[1730642747106,0.073508,68043.0,68042.0,0.033]
[1730642747396,0.073508,68043.0,68042.0,0.106509]
[1730642747897,0.36300497,68055.0,68044.0,0.073506]
[1730642747898,0.073506,68045.0,68044.0,0.073506]
[1730642748200,0.073506,68045.0,68044.0,0.434306]
[1730642748797,0.073506,68045.0,68044.0,0.875186]
[1730642748998,0.001,68048.0,68047.0,0.073504]
[1730642749201,0.073503,68048.0,68047.0,0.073504]
[1730642750297,0.0735,68051.0,68048.0,0.073502]
[1730642750490,0.0735,68051.0,68050.0,0.11744634]
[1730642750695,0.0735,68051.0,68047.0,0.06159518]
[1730642750696,0.00220497,68055.0,68049.0,0.05859518]
[1730642750895,0.00220497,68055.0,68047.0,0.003]
[1730642750896,0.00220497,68055.0,68048.0,0.05859518]
[1730642751098,0.073498,68052.0,68049.0,0.07333583]
[1730642751303,0.00220497,68055.0,68048.0,0.07333583]
[1730642751506,0.00220497,68055.0,68052.0,0.05858562]
[1730642751703,0.00220497,68055.0,68047.0,0.07633583]
[1730642751900,0.073503,68048.0,68047.0,0.07633583]
[1730642752094,0.073503,68048.0,68047.0,0.09358392]
[1730642752294,0.073503,68048.0,68047.0,0.16380937]
[1730642752601,0.073503,68048.0,68047.0,0.16381027]
[1730642752803,0.073503,68048.0,68047.0,0.16380985]
[1730642753202,0.074503,68048.0,68047.0,0.07322593]
[1730642753400,0.073504,68047.0,68046.0,0.07322593]
[1730642753604,0.073504,68047.0,68046.0,0.16374612]
[1730642754301,0.073504,68047.0,68046.0,0.09052019]
[1730642754602,0.001,68048.0,68044.0,0.3608]
[1730642754809,0.001,68048.0,68042.0,0.07322271]
[1730642754810,0.073508,68043.0,68042.0,0.07322271]
[1730642755118,0.073506,68045.0,68040.0,0.13742271]
[1730642755294,0.073506,68045.0,68041.0,0.16393446]
[1730642755492,0.073509,68042.0,68041.0,0.07322271]
[1730642755703,0.3608,68050.0,68040.0,0.13742271]
[1730642755902,0.074504,68047.0,68046.0,0.05858801]
[1730642756517,0.001,68045.0,68041.0,0.07622271]
[1730642756805,0.074509,68042.0,68041.0,0.003]
[1730642757104,0.074509,68042.0,68041.0,0.09072516]
[1730642757307,0.074509,68042.0,68041.0,0.16397169]
[1730642757502,0.073509,68042.0,68041.0,0.16397169]
[1730642758007,0.073509,68042.0,68041.0,0.1640661]
[1730642758196,0.073509,68042.0,68040.0,0.0642]
[1730642758197,0.07351,68041.0,68040.0,0.0642]
[1730642758405,0.07351,68041.0,68040.0,0.1081526]
[1730642759610,0.07451,68041.0,68040.0,0.1111526]
[1730642760010,0.07551,68041.0,68040.0,0.140711]
[1730642760909,0.07551,68041.0,68040.0,0.0672]
[1730642761402,0.07551,68041.0,68040.0,0.140711]
[1730642761804,0.002,68041.0,68040.0,0.140711]
[1730642762325,0.002,68041.0,68040.0,0.3618459]
[1730642762911,0.00220497,68055.0,68054.0,0.073496]
[1730642763099,0.00220497,68055.0,68054.0,0.434296]
[1730642764110,0.00320497,68055.0,68054.0,0.48124593]
[1730642764314,0.00320497,68055.0,68054.0,0.437296]
[1730642764526,0.07669997,68055.0,68054.0,0.54464593]
[1730642764810,0.07669997,68055.0,68054.0,0.4272]
[1730642765198,0.07669997,68055.0,68054.0,0.3638]
[1730642765398,0.07769997,68055.0,68054.0,0.3648]
[1730642765810,0.51853997,68055.0,68054.0,0.3648]
[1730642766210,0.07769997,68055.0,68054.0,0.3648]
[1730642767408,0.07769997,68055.0,68054.0,0.004]
[1730642767615,0.43849997,68055.0,68054.0,0.004]
[1730642768710,0.87933997,68055.0,68054.0,0.004]
[1730642769218,0.43849997,68055.0,68054.0,0.004]
[1730642770018,0.87933997,68055.0,68054.0,0.004]
[1730642773608,0.87933997,68055.0,68054.0,0.04794993]
[1730642774416,0.87933997,68055.0,68054.0,0.06273061]
[1730642776909,0.43849997,68055.0,68054.0,0.004]
[1730642777816,0.87933997,68055.0,68054.0,0.004]
[1730642778320,0.43849997,68055.0,68054.0,0.004]
[1730642778714,0.44084,68054.0,68052.0,4e-08]
[1730642778915,0.073498,68052.0,68047.0,0.05873007]
[1730642779113,0.073498,68052.0,68037.0,0.11815559]
[1730642779114,0.47214,68051.0,68046.0,0.05873007]
[1730642779315,0.434304,68047.0,68046.0,0.05873007]
[1730642779621,0.3608,68047.0,68044.0,0.05873007]
[1730642779916,0.073506,68045.0,68044.0,0.05873007]
[1730642780719,0.514386,68045.0,68044.0,0.05873007]
[1730642781109,0.073507,68044.0,68043.0,0.05873007]
[1730642781316,0.03,68044.0,68031.0,0.05873007]
[1730642781513,0.03,68044.0,68026.0,0.10805929]
[1730642781514,0.073512,68039.0,68030.0,0.05873007]
[1730642781711,0.073511,68040.0,68030.0,7e-08]
[1730642781910,0.073511,68040.0,68023.0,0.03495455]
[1730642781911,0.073531,68022.0,68021.0,3.3e-07]
[1730642782114,0.073531,68022.0,68005.0,0.3608]
[1730642782115,0.4688,68022.0,68005.0,0.3608]
[1730642782315,0.073548,68006.0,68005.0,0.3608]
[1730642782909,0.073548,68006.0,68005.0,0.39611462]
[1730642784408,0.074548,68006.0,68005.0,0.46966362]
[1730642785134,0.002,68006.0,68005.0,0.47166362]
[1730642785710,0.002,68006.0,68005.0,0.91282362]
[1730642785912,0.002,68006.0,68005.0,1.13244138]
[1730642788521,0.002,68006.0,68005.0,1.22288003]
[1730642788718,0.002,68006.0,68005.0,1.31093562]
[1730642788921,0.002,68006.0,68005.0,1.22288003]
[1730642790125,0.073531,68023.0,68005.0,1.53738662]
[1730642790325,0.3608,68029.0,68024.0,0.073528]
[1730642790326,0.073525,68027.0,68024.0,0.073528]
[1730642790531,0.073526,68026.0,68025.0,0.064]
[1730642792329,0.001,68026.0,68025.0,0.139527]
[1730642792934,0.002,68026.0,68025.0,0.140527]
[1730642793132,0.002,68026.0,68025.0,0.501327]
[1730642793438,0.00220647,68035.0,68025.0,0.501327]
[1730642793439,0.00220647,68035.0,68034.0,0.073518]
[1730642794830,0.001,68035.0,68034.0,0.075518]
[1730642795021,0.073509,68042.0,68034.0,0.002]
[1730642795327,0.00220482,68056.0,68039.0,0.3608]
[1730642795521,0.0735,68051.0,68047.0,0.073503]
[1730642795831,0.073502,68049.0,68047.0,0.073503]
[1730642796228,0.073502,68049.0,68045.0,0.3608]
[1730642796229,0.00220482,68056.0,68045.0,0.3608]
[1730642796426,0.00220482,68056.0,68046.0,0.032]
[1730642796621,0.00220482,68056.0,68055.0,0.073495]
[1730642797024,0.00220482,68056.0,68055.0,0.434295]
[1730642797624,0.073481,68068.0,68055.0,0.8016]
[1730642797824,0.00220415,68087.0,68061.0,0.3608]
[1730642797825,0.4688,68081.0,68061.0,0.3608]
[1730642798130,0.073486,68064.0,68062.0,0.073487]
[1730642798535,0.073478,68071.0,68065.0,0.073484]
[1730642798732,0.1406,68079.0,68068.0,0.3608]
[1730642799029,0.073472,68077.0,68070.0,0.073478]
[1730642799234,0.073473,68076.0,68070.0,0.073478]
[1730642799418,0.3608,68081.0,68070.0,0.073478]
[1730642799625,0.073474,68075.0,68070.0,0.073478]
[1730642799937,0.3608,68081.0,68070.0,0.073478]
[1730642800229,0.07348,68069.0,68068.0,0.3608]
[1730642800824,0.07348,68069.0,68068.0,0.3638]
[1730642801225,0.07348,68069.0,68068.0,0.3608]
[1730642801429,0.07448,68069.0,68068.0,0.3638]
[1730642802138,0.001,68069.0,68068.0,0.437281]
[1730642803329,0.001,68069.0,68068.0,0.3778]
[1730642803330,0.07448,68069.0,68068.0,0.3778]
[1730642805436,0.07448,68069.0,68068.0,0.017]
[1730642815146,0.001,68069.0,68068.0,0.017]
[1730642815334,0.001,68069.0,68068.0,0.090481]
[1730642815840,0.07448,68069.0,68068.0,0.090481]
[1730642816035,0.07448,68069.0,68068.0,0.017]
[1730642820941,0.001,68069.0,68068.0,0.090481]
[1730642821136,0.001,68069.0,68068.0,0.154581]
[1730642821642,0.07448,68069.0,68068.0,0.154581]
[1730642821943,0.07448,68069.0,68068.0,0.0811]
[1730642822248,0.07448,68069.0,68068.0,0.017]
[1730642823453,0.5152,68069.0,68068.0,0.017]
[1730642823946,0.073495,68055.0,68054.0,0.3608]
[1730642824260,0.073495,68055.0,68043.0,0.07278964]
[1730642824261,0.073507,68044.0,68043.0,0.07278964]
[1730642824439,0.0306,68054.0,68043.0,0.08976944]
[1730642824742,0.073508,68043.0,68042.0,0.00088]
[1730642824944,0.073509,68042.0,68041.0,0.07554599]
[1730642825131,0.0306,68054.0,68043.0,0.073507]
[1730642825336,0.0306,68054.0,68041.0,0.36380446]
[1730642825645,0.0306,68054.0,68041.0,0.36300446]
[1730642825844,0.073497,68053.0,68041.0,0.36300446]
[1730642826036,0.073509,68042.0,68041.0,0.43634823]
[1730642826236,0.074509,68042.0,68041.0,0.08954823]
[1730642826545,0.074509,68042.0,68041.0,0.01620446]
[1730642826942,0.074509,68042.0,68041.0,0.01720446]
[1730642827745,0.073509,68042.0,68041.0,0.00320446]
[1730642828652,0.435309,68042.0,68041.0,0.00320446]
[1730642829240,0.436309,68042.0,68041.0,0.00320446]
[1730642829451,0.877229,68042.0,68041.0,0.001]
[1730642830844,0.910229,68042.0,68041.0,0.002]
[1730642831049,1.210229,68042.0,68041.0,0.002]
[1730642832645,0.910229,68042.0,68041.0,0.002]
[1730642832847,1.210229,68042.0,68041.0,0.002]
[1730642833352,0.910229,68042.0,68041.0,0.002]
[1730642836649,0.073524,68028.0,68027.0,0.3608]
[1730642837247,0.073524,68028.0,68017.0,0.073535]
[1730642837557,0.073524,68028.0,68013.0,0.47092]
[1730642837558,0.073538,68015.0,68013.0,0.36156]
[1730642837756,0.073538,68015.0,68013.0,0.3608]
[1730642837956,0.073538,68015.0,68013.0,0.43434]
[1730642838254,0.073538,68015.0,68013.0,0.4351]
[1730642838754,0.074538,68015.0,68014.0,0.0649]
[1730642839658,0.075538,68015.0,68014.0,0.0649]
[1730642840050,0.074538,68015.0,68014.0,0.0649]
[1730642840250,0.075538,68015.0,68014.0,0.0629]
[1730642841042,0.075538,68015.0,68013.0,0.3608]
[1730642841252,0.073541,68012.0,68011.0,0.00220513]
[1730642841644,0.3608,68014.0,68006.0,0.3608]
[1730642841853,0.073547,68007.0,68006.0,0.3608]
[1730642843352,0.074547,68007.0,68006.0,0.3608]
[1730642844677,0.074547,68007.0,68006.0,0.3618]
[1730642844678,0.075547,68007.0,68006.0,0.3618]
[1730642847989,0.075547,68007.0,68006.0,0.001]
[1730642854003,0.07355,68004.0,68003.0,0.0313]
[1730642855001,0.07355,68004.0,68003.0,0.08964844]
[1730642855390,0.07455,68004.0,68003.0,0.0323]
[1730642855892,0.07555,68004.0,68003.0,0.0323]
[1730642856399,0.07555,68004.0,68003.0,0.105851]
[1730642856592,0.07555,68004.0,68003.0,0.19720244]
[1730642857204,0.07555,68004.0,68003.0,0.1790585]
[1730642857410,0.07555,68004.0,68003.0,0.19725368]
[1730642857613,0.07555,68004.0,68003.0,0.27048869]
[1730642857900,0.07555,68004.0,68003.0,0.12370268]
[1730642858096,0.07555,68004.0,68003.0,0.0323]
[1730642859714,0.07555,68004.0,67998.0,0.0313]
[1730642859715,0.434357,67997.0,67994.0,0.05863311]
[1730642860026,0.434357,67997.0,67963.0,0.1315429]
[1730642860027,0.073588,67969.0,67968.0,0.0314]
[1730642860209,0.073588,67969.0,67968.0,0.12428894]
[1730642860500,0.3608,67982.0,67968.0,0.19074611]
[1730642860501,0.073575,67981.0,67968.0,0.19074611]
[1730642860702,0.073575,67981.0,67961.0,0.17092757]
[1730642860703,0.073595,67962.0,67961.0,0.17092757]
[1730642860912,0.073595,67962.0,67961.0,0.26122566]
[1730642861191,0.073595,67962.0,67961.0,0.26878474]
[1730642861395,0.3608,67975.0,67961.0,0.26878474]
[1730642861586,0.073587,67970.0,67969.0,0.09785717]
[1730642861789,0.073588,67969.0,67968.0,0.001]
[1730642862288,0.073588,67969.0,67968.0,0.09885717]
[1730642862685,0.073588,67969.0,67968.0,0.001]
[1730642863184,0.001,67969.0,67961.0,0.17092757]
[1730642863402,0.073595,67962.0,67961.0,0.17092757]
[1730642863899,0.073597,67960.0,67959.0,0.0302]
[1730642864305,0.073597,67960.0,67959.0,0.12805717]
[1730642864903,0.073597,67960.0,67959.0,0.16065717]
[1730642865090,0.001,67962.0,67959.0,0.16065717]